Cogmind - Beta 13 @@@ ROGUE MODE // 2024.07.28 @ 20:08:03 Player: Hiredgoonthug Result: Destroyed by G-34 Mercenary with Small Laser Performance ------------- Evolutions (1) 500 Regions Visited (3) 600 Robots Destroyed (53) 265 Value Destroyed (1417) 1417 Prototype IDs (1) 20 Alien Tech Used (0) 0 Bonus (103) 103 TOTAL SCORE: 2905 Bonus ------- High Alert Combat Kills 103 Cogmind --------- Core Integrity 0/400 Matter 84/300 Energy 100/100 System Corruption 4% Temperature Cool (6) Movement Walking (190) Ox1 Location -9/Storage Parts ------- > --- POWER (1) -------- (None) > --- PROPULSION (3) --- Aluminum Leg Aluminum Leg > --- UTILITY (3) ------ Heat Sink Small Storage Unit Large Storage Unit > --- WEAPON (2) ------- Improved Assault Rifle Improved Assault Rifle > --- INVENTORY (15) --- Deuterium Engine EM Pulse Gun EM Pulse Gun Heavy Assault Rifle Heavy Assault Rifle Shotgun Improved Assault Rifle Assault Cannon Assault Cannon Assault Cannon Mini Grenade Launcher Katana Peak State ------------ > --- POWER ------------ Deuterium Engine > --- PROPULSION ------- Aluminum Leg Aluminum Leg Aluminum Leg > --- UTILITY ---------- Large Storage Unit Improved Targeting Computer Reflective Plating > --- WEAPON ----------- Assault Cannon Assault Cannon > --- INVENTORY -------- Deuterium Engine Aluminum Leg Aluminum Leg Small Storage Unit EM Pulse Gun EM Pulse Gun Shotgun Assault Cannon Assault Cannon Mini Grenade Launcher Katana [Rating: 20] Favorites ----------- Power Light Ion Engine Engine Light Ion Engine Propulsion Aluminum Leg Leg Aluminum Leg Utility Large Storage Unit Device Improved Terrain Scanner Storage Large Storage Unit Processor Improved Targeting Computer Protection Hardened Light Armor Plating Weapon Assault Rifle Energy Gun EM Pulse Gun Ballistic Gun Assault Rifle Ballistic Cannon Assault Cannon Launcher Mini Grenade Launcher Build | -11 -10 -9 -9 ------- Run | Yrd Mat Mat Sto Slots Evolved 2 | . . 2 . Power . | . . . . Propulsion 1 | . . 1 . Utility 1 | . . 1 . Weapon . | . . . . Parts Attached 43 | 7 4 14 18 Power 4 | 1 . 3 . Engine 4 | 1 . 3 . Core . | . . . . Reactor . | . . . . Propulsion 11 | 2 . 3 6 Treads . | . . . . Leg 11 | 2 . 3 6 Wheel . | . . . . Hover . | . . . . Flight . | . . . . Utility 12 | 2 1 6 3 Device 3 | 1 . 1 1 Storage 3 | 1 1 . 1 Processor 1 | . . 1 . Hackware . | . . . . Protection 5 | . . 4 1 Artifact . | . . . . Weapon 16 | 2 3 2 9 Energy Gun 1 | 1 . . . Energy Cannon . | . . . . Ballistic Gun 8 | 1 3 2 2 Ballistic Cannon 5 | . . . 5 Launcher 2 | . . . 2 Special Weapon . | . . . . Impact Weapon . | . . . . Slashing Weapon . | . . . . Piercing Weapon . | . . . . Special Melee Weapon . | . . . . Unidentified Prototypes 1 | . . . 1 Parts Lost 14 | . . 3 11 Power 3 | . . 2 1 Propulsion 4 | . . . 4 Utility 4 | . . 1 3 Weapon 3 | . . . 3 Highest Loss Streak 4 | . . 1 4 To Critical Strikes . | . . . . Average Slot Usage (%) 96 | . 100 99 86 Engine 11 | . 14 10 10 Leg 31 | . 28 33 31 Device 7 | . 14 7 1 Storage 12 | . 14 11 12 Processor 4 | . . 5 4 Protection 5 | . . 8 5 Energy Gun 2 | . 12 . . Ballistic Gun 17 | . 15 22 11 Ballistic Cannon 1 | . . . 7 Naked Turns . | . . . . Heaviest Build 43 | 13 28 40 43 Greatest Support 30 | 20 20 30 30 Greatest Overweight (x) 2 | . 1 1 2 Average Overweight (x) . | . . . 1 Largest Inventory Capacity 15 | 8 15 15 15 Average Capacity 14 | 7 14 15 15 Most Carried 15 | 5 13 15 15 Average Carried 11 | 3 10 12 11 Final Capacity 15 | 8 15 15 15 Final Carried 15 | 5 13 15 12 Class Distribution -------------------- 93% | Mutant 6% | Scavenger-Mutant Dominant Class ---------------- Mutant | -10/Materials Mutant | -9/Materials Mutant | -9/Storage Resources | -11 -10 -9 -9 ----------- Run | Yrd Mat Mat Sto Matter Collected 1258 | 285 . 413 560 Remotely . | . . . . Salvage Created 1714 | 121 . 676 917 Parts 111 | 7 . 47 57 Haulers Intercepted 1 | . . . 1 Recyclers Shooed 3 | . . . 3 Parts Field Recycled . | . . . . Retrieved Matter . | . . . . Parts Self-Destructed . | . . . . Prevented . | . . . . Kills | -11 -10 -9 -9 ------- Run | Yrd Mat Mat Sto Combat Hostiles Destroyed 38 | . . 14 24 Guns 19 | . . 14 5 Cannons 14 | . . . 14 AOE 5 | . . . 5 Classes Destroyed 12 | 2 . 6 4 Worker 6 | . . 2 4 Builder 1 | . . . 1 Tunneler 2 | 2 . . . Hauler 1 | . . . 1 Recycler 3 | 1 . . 2 Mechanic 1 | . . . 1 Watcher 1 | . . 1 . Swarmer 6 | . . 1 5 Grunt 18 | . . 7 11 Brawler 1 | . . . 1 Duelist 2 | . . 1 1 Sentry 11 | . . 5 6 Best Kill Streak 13 | 2 . 5 13 Combat Bots Only 10 | . . 5 10 Max Kills in Single Turn 4 | 1 . 1 4 Gunslinging . | . . . . Exploded 2 | . . . 2 Melee . | . . . . Uniques/NPCs Destroyed . | . . . . Combat | -11 -10 -9 -9 -------- Run | Yrd Mat Mat Sto Hostile Shots Fired 245 | . . 91 154 Missed 49 | . . 25 24 Damage Taken 2519 | . . 949 1570 Core 408 | . . 235 173 Absorbed by Shields . | . . . . Ignored by Resistances 112 | . . . 112 Core Remaining (%) 100 | 100 100 . . Volleys Fired 132 | 5 . 59 68 Largest 2 | 2 . 2 2 Hottest 88 | 60 . 46 88 Shots Fired 242 | 10 . 118 114 Gun 173 | 10 . 118 45 Cannon 58 | . . . 58 Launcher 11 | . . . 11 Special . | . . . . Kinetic 226 | 5 . 118 103 Thermal . | . . . . Explosive 11 | . . . 11 Electromagnetic 5 | 5 . . . Robot Hit Streak 24 | 3 . 22 24 Robot Miss Streak 3 | 1 . 3 3 Penetration Max . | . . . . Secondary Targets 1 | . . 1 . Max Gunslinging Chain 1 | . . 1 . Shots Hit Robots 167 | 6 . 88 73 Core Hits 75 | 4 . 28 43 Critical Kills . | . . . . Critical Parts Destroyed 1 | . . 1 . Critical Strikes 2 | . . 1 1 Destroy 1 | . . 1 . Blast 1 | . . . 1 Melee Attacks . | . . . . Impact . | . . . . Slashing . | . . . . Piercing . | . . . . Sneak Attacks . | . . . . Combat Hostiles . | . . . . Follow-up Attacks . | . . . . Damage Inflicted 3702 | 87 . 1203 2412 Guns 1778 | 87 . 1203 488 Cannons 988 | . . . 988 Explosions 936 | . . . 936 Melee . | . . . . Ramming . | . . . . Kinetic 2727 | 48 . 1203 1476 Thermal . | . . . . Explosive 936 | . . . 936 Electromagnetic 39 | 39 . . . Impact . | . . . . Slashing . | . . . . Piercing . | . . . . Highest Corruption 4 | . . . 4 Average Corruption 4 | . . . 4 Corruption Purged . | . . . . Corruption Blocked . | . . . . Effects 7 | . . . 7 Message Errors 1 | . . . 1 Matter Fused 2 | . . . 2 Parts Rejected 2 | . . . 2 Data Loss (major) 1 | . . . 1 Misfires 1 | . . . 1 Overload Shots . | . . . . Overflow Damage 57 | . . . 57 Projectiles 9 | . . . 9 Explosions 48 | . . . 48 Melee . | . . . . Knockbacks 11 | . . . 11 Impact . | . . . . Kinetic 9 | . . . 9 Secondary 2 | . . . 2 Self-Inflicted Damage 66 | . . . 66 Shots 3 | . . . 3 Rammed . | . . . . Targets Rammed 1 | . . 1 . Kicked 1 | . . 1 . Crushed . | . . . . Highest Temperature 487 | . . 10 487 Average Temperature 138 | . . 3 163 Received Heat Transfer 879 | . . 285 594 Effects 8 | . . . 8 Shutdowns 3 | . . . 3 Energy Bleed 3 | . . . 3 Interference 1 | . . . 1 Damage (minor) 1 | . . . 1 Siege Activations . | . . . . Robots Corrupted . | . . . . Combat Hostiles . | . . . . Parts Fried . | . . . . Impact Corruptions . | . . . . Robots Melted . | . . . . Combat Hostiles . | . . . . Parts Melted . | . . . . Heat Transferred . | . . . . Parts Sabotaged . | . . . . Parts Stolen . | . . . . Parts Stripped . | . . . . Power Chain Reactions . | . . . . Alert | -11 -10 -9 -9 ------- Run | Yrd Mat Mat Sto Peak Influence 663 | 15 24 176 663 Initial 69 | . 9 . 69 Average 137 | 4 12 83 391 Maximum Alert Level 2 | . . . 2 Low Security (%) 81 | 100 100 100 24 Level 1 4 | . . . 17 Level 2 14 | . . . 57 Level 3 . | . . . . Level 4 . | . . . . Level 5 . | . . . . High Security . | . . . . Max Security . | . . . . Squads Dispatched 7 | . . 2 5 Investigation 1 | . . . 1 Extermination . | . . . . Reinforcement 3 | . . 2 1 Assault . | . . . . Garrison 3 | . . . 3 Intercept . | . . . . Searches Triggered . | . . . . Construction Impeded . | . . . . Haulers Reinforced . | . . . . Active Scanning Responses . | . . . . Cargo Convoy Interrupts . | . . . . Stealth | -11 -10 -9 -9 --------- Run | Yrd Mat Mat Sto Distress Signals 8 | . . 5 3 Communications Jammed . | . . . . Distress Signals . | . . . . Times Spotted 55 | . 2 24 29 Peak Tracking Total 6 | . 1 6 5 Tactical Retreats 1 | . . 1 . Traps | -11 -10 -9 -9 ------- Run | Yrd Mat Mat Sto Traps Triggered 2 | . 1 . 1 Indirectly . | . . . . Trap Hack Attempts . | . . . . Triggered . | . . . . Disarmed . | . . . . Reprogrammed . | . . . . Reused . | . . . . Traps Extracted . | . . . . Installed . | . . . . Triggered . | . . . . Machines | -11 -10 -9 -9 ---------- Run | Yrd Mat Mat Sto Machines Disabled 2 | . . 1 1 Max in Single Turn 1 | . . 1 1 Machines Repaired . | . . . . Machines Dismantled . | . . . . Machines Sabotaged . | . . . . Overloaded Fab Kills . | . . . . Hacking | -11 -10 -9 -9 --------- Run | Yrd Mat Mat Sto Machines Accessed 1 | . . 1 . Terminals 1 | . . 1 . Fabricators . | . . . . Repair Stations . | . . . . Recycling Units . | . . . . Scanalyzers . | . . . . Garrison Access . | . . . . Total Hacks 1 | . . 1 . Successful 1 | . . 1 . Failed . | . . . . Catastrophic . | . . . . Database Lockouts . | . . . . Manual . | . . . . Terminals 1 | . . 1 . Fabricators . | . . . . Repair Stations . | . . . . Recycling Units . | . . . . Scanalyzers . | . . . . Garrison Access . | . . . . Terminal Hacks 1 | . . 1 . Record 1 | . . 1 . Fabricator Hacks . | . . . . Repair Station Hacks . | . . . . Recycling Unit Hacks . | . . . . Scanalyzer . | . . . . Garrison Access Hacks . | . . . . Unauthorized Hacks . | . . . . Terminals . | . . . . Fabricators . | . . . . Repair Stations . | . . . . Recycling Units . | . . . . Scanalyzers . | . . . . Garrison Access . | . . . . Data Cores Recovered . | . . . . Used . | . . . . Hacking Detections . | . . . . Full Trace Events . | . . . . Feedback Events . | . . . . Feedback Blocked . | . . . . Robot Schematics Acquired . | . . . . Robots Built . | . . . . Authchips . | . . . . Time . | . . . . Total Robot Build Rating . | . . . . Part Schematics Acquired . | . . . . Parts Built . | . . . . Authchips . | . . . . Time . | . . . . Total Part Build Rating . | . . . . Parts Repaired . | . . . . Time . | . . . . Parts Recycled . | . . . . Recycled Matter . | . . . . Retrieved Matter . | . . . . Retrieved Components . | . . . . Parts Scanalyzed . | . . . . Part Schematics Acquired . | . . . . Parts Damaged . | . . . . Bothacking | -11 -10 -9 -9 ------------ Run | Yrd Mat Mat Sto Used RIF Installer . | . . . . Robots Hacked . | . . . . Non-combat . | . . . . Combat . | . . . . Robot Hacks Applied . | . . . . Relay Couplers Released . | . . . . Fabnet Peak Effective % . | . . . . Robots Rewired . | . . . . Allies Hacked . | . . . . Hacks Repelled . | . . . . Allies | -11 -10 -9 -9 -------- Run | Yrd Mat Mat Sto Total Allies . | . . . . Largest Group . | . . . . Highest-Rated Group . | . . . . Highest-Rated Ally . | . . . . Total Orders . | . . . . Ally Attacks . | . . . . Total Damage . | . . . . Kills . | . . . . Allies Corrupted . | . . . . Allies Melted . | . . . . Intel | -11 -10 -9 -9 ------- Run | Yrd Mat Mat Sto Robot Analysis Total . | . . . . Derelict Logs Recovered . | . . . . Drone Launches . | . . . . Drone Recoveries . | . . . . Exploration | -11 -10 -9 -9 ------------- Run | Yrd Mat Mat Sto Turns Passed 2283 | 157 515 1053 558 Spaces Moved 961 | 116 256 413 176 Core 22 | 22 . . . Treads . | . . . . Legs 939 | 94 256 413 176 Wheels . | . . . . Hover . | . . . . Flight . | . . . . Fastest Speed 50 | 50 120 120 190 Average Speed 172 | 106 186 173 191 Slowest Speed 260 | 120 190 190 260 Overloaded Moves . | . . . . Propulsion Burnouts . | . . . . Robots Hopped . | . . . . Cave-ins Triggered . | . . . . Exploration Rate (%) 28 | 5 32 38 38 Regions Visited 3 Branch Regions 1 Pre-discovered Areas . | . . . . Known Exits Taken . | . . . . Unknown Exits Taken 3 | 1 1 1 . Scrap Searched . | . . . . Spaces Dug . | . . . . Terrain Destroyed 60 | . . . 60 Melee . | . . . . Projectile 10 | . . . 10 AOE 50 | . . . 50 Terrain Rammed . | . . . . Walls Destroyed . | . . . . Machines Disabled . | . . . . Actions | -11 -10 -9 -9 --------- Run | Yrd Mat Mat Sto Total 1347 | 139 291 635 282 Wait 151 | . 23 118 10 Move 958 | 115 255 412 176 Hop . | . . . . Pick Up 49 | 12 9 19 9 Fast Attach . | . . . . Attach 28 | 7 1 9 11 Detach 1 | . . 1 . Swap 15 | . 3 5 7 Drop 12 | . . 11 1 Fire 132 | 5 . 59 68 Melee . | . . . . Ram . | . . . . Kick 1 | . . 1 . Crush . | . . . . Escape Stasis . | . . . . Rewire . | . . . . Trap . | . . . . Miscellaneous . | . . . . Route ------- -11/Scrapyard -10/Materials -9/Materials (discovered 3 exits: [*Mat] / [*Min] / [*Sto]) -9/Storage History --------- Turn | Location | Event 10 | -11/Scrapyard | Discovered new exit (range 15) 158 | -11/Scrapyard | Entered Materials 310 | -10/Materials | Build established: Mutant 536 | -10/Materials | Discovered new exit (range 10) 673 | -10/Materials | Entered another Materials area 673 | -9/Materials | Evolved 2 slots: Propulsion x1, Utility x1 1283 | -9/Materials | Discovered new exit (range 15) 1561 | -9/Materials | Discovered new exit (range 12) 1595 | -9/Materials | Core integrity fell below 50% 1718 | -9/Materials | Discovered new exit (range 5) 1726 | -9/Materials | Entered Storage 1848 | -9/Storage | Garrison activated, responded to threat 1864 | -9/Storage | Core integrity fell below 20% 1913 | -9/Storage | Lost 4 parts (2n1u1w) 1948 | -9/Storage | Destroyed 10 combat bots 2284 | -9/Storage | Destroyed by G-34 Mercenary with Small Laser Last Messages --------------- Acquired Hvy. Assault Rifle. Acquired Heat Sink. Triggered Alarm Trap. An alarm sounds. ALERT: Alarm triggered, dispatching investigation squad. Deuterium Engine destroyed. Y-45 Defender destroyed. Acquired 60 matter. System corrupted: Matter fused (-5). Acquired Hvy. Assault Rifle. 8/=YY5:6HXNL4ZT>18G&4N,I: TFQME LVW W-16 Scout sends out distress signal. G-34 Mercenary destroyed. R-06 Scavenger inserts Lgt. Treads into recycling unit. Recycling unit begins recycling process. Aluminum Leg destroyed. R-06 Scavenger inserts Hvy. Assault Rifle into recycling unit. R-06 Scavenger inserts Prototype Engine into recycling unit. R-06 Scavenger inserts Lgt. Treads into recycling unit. Recycling unit begins recycling process. Map ----- +----------------------------------------------------+ | | | | | | | | | | | | | | | ?????????????????????????????????????????????? | | ?????????????????????????????????????????????? | | ?????????????????????????????????????????????? | | ?????????????????????????????????????????????? | | ?????????????????????????????????????????????? | | ?????????????????????????????????????????????? | | ?????????????????????????????????????????????? | | ?????????????????????###?????????????????????? | | ????????????????????#"""#????????????????????? | | ?????????????????####"Y"####?????????????????? | | ??????????????#### #??????????###????? | | ??????????????#""" """ #???????#? ? ? | | ??????????????#"Yr """ #???????# #? | | ??????????????#""" """ w#???????# """ """ #? | | ??????????????#### #???????# """ """ #? | | ?????????????????# """ #???????# """ """ #? | | ?????????????????# """ !#???????# #? | | ?????????????????# """ =#?##"""#? ?? | | ?????????????????# @==[!#?#T ! #??? ??## | | ?????????????????#####;#########+######+#####" | | ?????????????????# %g * | | ?????????????????+ m | | ?????????????????# | | ?????????????????# #########/###### ##### | | ?????????????????# ????????# T#???# ## | | ?????????????????# ????????#"##???# ## " | | ?????????????????#### ???????????????# ## "G | | ????????????????????# ???????????????# ## " | | ????????????????????#+???????????????# ## | | ?????????????????????????????????????# ## | | ?????????????????????????????????????###### | | ??????????????????????????????????????????# !! | | ??????????????????????????????????????????# !! | | ??????????????????????????????????????????# !! | | ?????????????????????????????????????????# | | ?????????????????????????????????????????##### | | ?????????????????????????????????????????????? | | ?????????????????????????????????????????????? | | ?????????????????????????????????????????????? | | ?????????????????????????????????????????????? | | ?????????????????????????????????????????????? | | ?????????????????????????????????????????????? | | ??????????????????????????????????????????#### | +----------------------------------------------------+ Best States ------------- Heat Dissipation 38 Energy Generation 14 Energy Capacity 275 Matter Stores 300 Matter Capacity 300 Sight Range 16 Terrain Scan Range 16 Terrain Scan Density 10 Armor Coverage 300 Resistance: TH 10 Evasion (%) 55 Targeting Accuracy 6 Item Schematics ----------------- None Robot Schematics ------------------ None Fabricated ------------ Nothing Alien Tech Used ----------------- None Achievements -------------- Oops Challenges ------------ None Game ------ Seed ThermoelectricSalvageCharge Manual? 0 Play Time 00:32:16 Cumulative 5.0 hours Start 2024.07.28 @ 17:53:22 End 2024.07.28 @ 20:08:03 Sessions 3 Manual Loads 0 Difficulty Rogue Special Mode None Game No. 6 Rogue 6 Adventurer 0 Explorer 0 Win Type - Total 0 Types 0/0/0/0/0/0/0/0/0 Lore% 8 Gallery% 9 Achievement% 10 Wizard Run 0 Options --------- Layout 0 ASCII 0 Keyboard 0 Movement Mouse Keybinds 0 Fullscreen 2 Font 24/Smallcaps Map View 76x50 Zoom Use 0% Tactical HUD 0 Map Filters NONE Filters NONE Steam 1 RUN: bb601a91-7ea0-42de-9364-67d32126c26f